bitfinex/quotes_SOLUSD_20260120
["timestamp","ask_amount","ask_price","bid_price","bid_amount"]
[1768873919017,3.17409803,133.96,133.94,2.87715065]
[1768873919337,3.11409804,133.96,133.94,2.87715065]
[1768873919542,3.11409804,133.96,133.93,14.02812083]
[1768873920540,3.11409804,133.96,133.93,10.4335463]
[1768873920841,3.11409804,133.96,133.93,2.9672302]
[1768873921214,3.11409804,133.96,133.92,6.55592326]
[1768873921419,3.17409803,133.95,133.92,2.96134873]
[1768873923127,3.17409803,133.95,133.92,10.42818813]
[1768873923320,3.17409803,133.95,133.93,2.95560158]
[1768873923740,3.17409803,133.96,133.93,2.95560158]
[1768873933549,3.17409803,134.0,133.96,2.92977138]
[1768873933861,3.17409803,134.01,133.98,6.52434591]
[1768873936951,3.17409803,134.01,133.98,3.5942312]
[1768873937482,3.17409803,134.01,133.97,10.38418815]
[1768873939644,3.17409803,134.01,133.97,13.97841935]
[1768873940558,3.17409803,134.01,133.98,2.91346029]
[1768873941069,3.17409803,134.02,133.99,2.91123596]
[1768873941775,3.17409803,134.02,133.99,6.50546716]
[1768873941973,3.17409803,134.02,133.99,3.5942312]
[1768873942646,3.17409803,134.02,133.98,6.50326837]
[1768873943171,3.17409803,134.02,133.99,2.90471507]
[1768873943870,3.17409803,134.02,133.99,10.36794101]
[1768873944360,3.17409803,134.02,133.99,13.96217221]
[1768873944567,19.53130987,134.03,134.0,6.49682238]
[1768873944944,19.53130987,134.03,134.0,2.90259118]
[1768873945672,3.17130987,134.03,134.0,13.95946497]
[1768873946161,3.17130987,134.03,134.0,6.49682238]
[1768873946755,3.17130987,134.03,134.0,2.90259118]
[1768873946954,3.17130987,134.03,134.0,6.49682238]
[1768873948087,3.17130987,134.03,134.0,2.90259118]
[1768873948465,3.17130987,134.03,133.99,10.35740281]
[1768873948663,3.17130987,134.03,133.99,13.95163401]
[1768873951689,3.17130987,134.03,134.0,2.88839156]
[1768873955565,3.17130987,134.03,134.0,6.48262276]
[1768873955759,3.17130987,134.03,134.0,2.88839156]
[1768873958087,3.17130987,134.03,133.99,13.93259222]
[1768873961369,3.17130987,134.03,134.0,2.86999841]
[1768873964192,3.17130987,134.03,134.0,11.05688648]
[1768873964388,0.1,134.03,134.01,3.5942312]
[1768873965686,0.1,134.03,134.0,10.32587114]
[1768873965880,0.1,134.03,134.02,3.5942312]
[1768873966190,0.1,134.03,134.01,3.5942312]
[1768873967990,0.1,134.03,134.0,10.32587114]
[1768873967991,3.2994654,134.03,134.0,10.32587114]
[1768873968196,3.2994654,134.03,134.0,13.92010234]
[1768873968894,19.6394654,134.03,134.0,13.91205323]
[1768873969496,3.1994654,134.02,133.99,10.31835876]
[1768873969683,3.1994654,134.02,133.99,13.91258996]
[1768873970597,3.1994654,134.02,133.99,10.31835876]
[1768873970899,3.1994654,134.02,133.99,13.91258996]
[1768873972798,3.1994654,134.02,133.99,7.46319201]
[1768873972978,3.1994654,134.02,133.99,11.05742321]
[1768873974501,3.1994654,134.02,133.99,13.90352511]
[1768873975099,3.1994654,134.02,133.99,10.30929391]
[1768873975894,3.1994654,134.02,133.99,13.90352511]
[1768873980721,16.44,134.03,134.0,6.43187529]
[1768873980722,19.41053114,134.03,134.0,6.43187529]
[1768873981003,0.1,134.03,134.01,6.43052177]
[1768873981224,16.34,134.02,134.01,6.43052177]
[1768873982087,0.1,134.03,134.01,6.43052177]
[1768873982294,3.07053114,134.03,134.01,6.43052177]
[1768873983306,0.1,134.03,134.01,11.05607604]
[1768873983510,0.1,134.04,134.02,6.42786121]
[1768873985217,0.1,134.04,134.02,13.88941179]
[1768873985907,0.1,134.04,134.02,13.28864319]
[1768873986411,0.1,134.04,134.02,10.29518059]
[1768873993311,3.07053114,134.04,134.02,10.29518059]
[1768873994196,3.07053114,134.04,134.02,2.83363001]
[1768874000407,3.07053114,134.04,133.99,2.81333368]
[1768874000606,3.09369497,134.04,133.99,2.81333368]
[1768874000909,2.97053114,134.03,133.99,2.81333368]
[1768874001412,2.97053114,134.03,133.99,10.27626862]
[1768874005126,3.09893718,134.02,133.98,10.27081363]
[1768874005333,3.09893718,134.02,133.98,13.2645086]
[1768874006409,3.09893718,134.02,133.98,10.27081363]
[1768874006610,3.09893718,134.02,133.98,7.46374337]
[1768874007739,3.09893718,134.02,133.98,13.26251543]
[1768874008936,3.09893718,134.02,133.99,2.80312944]
[1768874009141,3.09893718,134.02,133.99,5.79682441]
[1768874010338,3.09893718,134.02,133.99,10.26632253]
[1768874010943,3.09893718,134.02,133.98,13.25851486]
[1768874013439,3.09893718,134.02,133.98,10.26481989]
[1768874013624,3.09893718,134.02,133.98,13.25851486]
[1768874016523,3.09893718,134.02,133.98,10.26481989]
[1768874016917,3.09893718,134.02,133.98,7.46359361]
[1768874017335,3.09893718,134.01,133.98,7.46359361]
[1768874019745,3.09893718,134.01,133.98,10.25763211]
[1768874019950,3.09893718,134.01,133.98,13.25132708]
[1768874021650,19.33369497,134.03,133.99,2.85234297]
[1768874021843,19.33369497,134.03,133.98,10.45728858]
[1768874022151,19.33369497,134.03,133.98,13.30879836]
[1768874022447,2.99369497,134.03,133.98,13.30879836]
[1768874022667,19.33369497,134.03,133.98,13.30879836]
[1768874022963,19.33369497,134.03,133.99,2.84987201]
[1768874023574,3.13744835,134.02,133.99,2.84987201]
[1768874024263,3.23744835,134.04,134.0,5.84276218]
[1768874024440,3.23744835,134.04,134.01,2.84906721]
[1768874025454,0.1,134.04,134.02,2.84827165]
[1768874025764,0.1,134.04,134.02,5.84196662]
[1768874026264,0.1,134.04,134.02,13.30345345]
[1768874026867,0.1,134.04,134.02,10.30975848]
[1768874031562,3.23744835,134.04,134.01,10.3032896]
[1768874031751,3.23744835,134.04,134.01,13.29698457]
[1768874032359,19.57744835,134.04,134.01,13.29698457]
[1768874033361,3.23744835,134.04,134.01,13.29698457]
[1768874033543,19.57744835,134.04,134.01,13.29698457]
[1768874036560,19.57744835,134.04,134.01,5.83508072]
[1768874036769,3.05872347,134.03,133.99,10.29733746]
[1768874037582,16.34,134.02,133.99,10.29733746]
[1768874038266,16.34,134.02,133.99,13.29103243]
[1768874039568,19.39872347,134.02,133.99,10.29733746]
[1768874039747,19.39872347,134.02,133.99,13.29103243]
[1768874039948,19.39872347,134.02,133.99,10.29733746]
[1768874040145,19.39872347,134.02,133.99,13.29103243]
[1768874040451,19.39872347,134.02,133.99,5.82821152]
[1768874040666,3.05872347,134.01,133.99,2.83451655]
[1768874042186,19.39872347,134.01,133.99,2.83451655]
[1768874044671,3.05872347,134.0,133.97,2.8260678]
[1768874044856,3.05872347,134.0,133.97,5.81976277]
[1768874047280,3.05872347,134.0,133.96,2.82309547]
[1768874047572,3.05872347,134.0,133.97,10.28731762]
[1768874048777,3.05872347,134.0,133.96,10.28682525]
[1768874049078,3.05872347,134.0,133.96,13.28052022]
[1768874049788,3.05872347,134.0,133.96,10.28682525]
[1768874049958,3.05872347,134.0,133.96,13.28052022]
[1768874053063,3.05872347,134.0,133.96,10.28682525]
[1768874053263,3.05872347,134.0,133.96,13.28052022]
[1768874058884,3.05872347,134.0,133.96,13.28282317]
[1768874059485,3.05872347,134.0,133.96,10.28682525]
[1768874059675,3.05872347,134.0,133.96,13.28282317]
[1768874064187,3.05872347,134.0,133.97,2.80727104]
[1768874064881,3.05872347,134.0,133.97,10.27133865]
[1768874065995,3.05872347,134.0,133.96,5.80248262]
[1768874067492,3.05872347,134.0,133.97,7.46435769]
[1768874071203,3.05872347,134.0,133.96,13.26727993]
[1768874073199,3.05872347,134.0,133.97,2.80051053]
[1768874073408,16.34,134.01,133.99,2.80051053]
[1768874074007,3.15050559,134.0,133.98,2.99599792]
[1768874074202,3.15050559,134.0,133.97,5.79579976]
[1768874074407,3.15050559,134.0,133.98,7.46380056]
[1768874074584,3.15050559,134.0,133.98,13.25960032]
[1768874074783,19.49050559,134.01,133.98,13.25960032]
[1768874077702,19.49050559,134.01,133.98,10.2636024]
[1768874078989,19.49050559,134.01,133.98,2.79980184]
[1768874081314,3.15050559,134.0,133.98,2.79980184]
[1768874089517,3.02244269,134.03,134.0,2.7895087]
[1768874089830,19.36244269,134.03,134.0,5.78550662]
[1768874092510,19.36244269,134.03,134.0,2.7895087]
[1768874093218,3.14878367,134.02,134.0,2.7895087]
[1768874095617,13.55442978,134.03,134.01,7.46212969]
[1768874095915,2.99599792,134.03,133.95,5.34408856]
[1768874096121,3.14878367,134.01,133.97,2.99599792]
[1768874096322,19.42878368,134.01,133.98,0.0594629]
[1768874096717,19.42878368,134.01,133.98,7.5229296]
[1768874097426,16.34,134.01,133.97,7.52326058]
[1768874097723,16.28000001,134.01,133.97,10.5192585]
[1768874098229,3.14878367,134.0,133.97,10.5192585]
[1768874098528,3.08878368,134.0,133.97,10.5192585]
[1768874099531,3.08878368,134.0,133.97,0.05893198]
[1768874099717,3.08878368,134.0,133.97,3.0549299]
[1768874100534,3.08878368,134.0,133.97,7.52321903]
[1768874101727,16.34,133.99,133.97,7.52321903]
[1768874101919,16.28000001,133.99,133.97,7.52321903]
[1768874102115,3.14878367,134.03,133.99,0.04343873]
[1768874102316,19.48878367,134.02,133.99,3.03943665]
[1768874104035,19.48878367,134.02,133.99,10.50237141]
[1768874104932,3.14878367,134.02,133.99,10.50237141]
[1768874105335,3.14878367,134.02,133.99,7.50637349]
[1768874105525,3.14878367,134.02,133.99,10.50237141]
[1768874112935,19.48878367,134.03,133.99,10.50237141]
[1768874113434,3.14878367,134.02,133.99,10.50237141]
[1768874118155,3.24878367,134.04,134.0,2.99599792]
[1768874118356,0.1,134.04,134.01,2.99599792]
[1768874118556,0.1,134.04,134.02,2.99599792]
[1768874119861,0.1,134.04,134.02,10.45744502]
[1768874120858,0.1,134.04,134.02,2.99343373]
[1768874123857,0.1,134.04,134.02,10.45492259]
[1768874124065,2.69191557,134.05,134.02,10.45492259]
[1768874125144,2.69191557,134.05,134.02,2.99343373]
[1768874126465,0.1,134.05,134.02,10.45479348]
[1768874126664,2.69191557,134.05,134.02,10.45479348]
[1768874146378,2.69191557,134.05,134.02,29.10872572]
[1768874146761,0.1,134.06,134.02,29.10872572]
[1768874147082,0.1,134.06,134.04,1.33384418]
[1768874147887,0.1,134.06,134.02,30.4212529]
[1768874148886,2.37169089,134.06,134.02,30.4212529]
[1768874149295,2.37169089,134.06,134.03,10.45418906]
[1768874151265,2.37169089,134.06,134.03,7.46075533]
[1768874151875,2.37169089,134.06,134.03,8.69043502]
[1768874154390,2.37169089,134.06,134.03,11.68386875]
[1768874155587,2.37169089,134.06,134.03,10.45418906]
[1768874157194,2.37169089,134.06,134.02,7.46130433]
[1768874157195,2.22429958,134.05,134.02,7.46130433]
[1768874157393,2.22429958,134.04,134.01,7.46210488]
[1768874159294,2.99343373,134.02,133.97,19.73212607]
[1768874159499,2.22429958,134.01,133.98,7.46342926]
[1768874161729,2.22429958,134.0,133.97,8.53633161]
[1768874161914,2.22429958,134.0,133.97,7.46416266]
[1768874162422,2.22429958,133.99,133.96,3.89376231]
[1768874162723,2.22429958,133.97,133.94,7.46578801]
[1768874163016,2.22429958,133.97,133.93,4.01663472]
[1768874163017,2.22429958,133.97,133.93,11.36225979]
[1768874163220,2.22429958,133.95,133.93,7.46644044]
[1768874163420,2.22429958,133.95,133.93,10.45987417]
[1768874163719,18.56429958,133.96,133.93,11.46712602]
[1768874166707,18.56429958,133.96,133.93,8.47369229]
[1768874166907,18.56429958,133.96,133.93,11.46712602]
[1768874169138,16.34,133.96,133.94,7.46594921]
[1768874169325,16.34,133.98,133.96,0.91533126]
[1768874169516,2.22429958,133.99,133.96,0.91533126]
[1768874169719,2.22429958,133.98,133.95,3.90876499]
[1768874170131,2.22429958,133.98,133.94,11.36000406]
[1768874170531,2.22429958,133.98,133.94,30.02507797]
[1768874170729,2.22429958,133.98,133.94,27.03164424]
[1768874171034,2.22429958,133.98,133.94,30.02507797]
[1768874172541,2.22429958,133.98,133.95,2.99343373]
[1768874177637,2.22429958,133.98,133.95,11.26072887]
[1768874177939,2.22429958,133.99,133.96,3.79570759]
[1768874178744,2.22429958,133.99,133.96,0.80227386]
[1768874178946,2.22429958,133.99,133.96,3.79570759]
[1768874180119,2.22429958,133.99,133.96,11.26053561]
[1768874180939,2.22429958,133.99,133.96,11.26325336]
[1768874181444,2.22429958,133.99,133.95,10.46158341]
[1768874182142,2.22429958,133.99,133.95,11.19832228]
[1768874182744,2.22429958,133.99,133.93,18.66593037]
[1768874182745,2.22429958,133.99,133.96,10.4609282]
[1768874182927,2.22429958,133.99,133.96,11.19766707]
[1768874196333,2.22429958,133.99,133.96,3.73289035]
[1768874196727,2.22429958,133.99,133.95,8.0265994]
[1768874196950,2.22429958,133.99,133.96,2.99615148]
[1768874197430,2.22429958,133.99,133.95,0.56138889]
[1768874197734,2.22429958,133.99,133.95,3.55754037]
[1768874199831,2.22429958,133.99,133.95,11.02297791]
[1768874203039,2.22429958,133.99,133.97,2.99615148]
[1768874203435,2.22429958,133.99,133.96,3.47572812]
[1768874204340,2.22429958,133.99,133.96,10.94052183]
[1768874204538,2.22429958,133.99,133.96,7.94437035]
[1768874204839,2.22429958,133.99,133.96,10.94052183]
[1768874205152,2.22429958,133.99,133.96,10.46094519]
[1768874205952,2.22429958,133.99,133.96,7.46479371]
[1768874211540,2.22429958,133.99,133.95,10.9216339]
[1768874211839,2.22429958,133.99,133.95,7.46520447]
[1768874213138,1.88935806,133.98,133.94,7.86209439]
[1768874215244,1.8393521,133.98,133.94,7.86209439]
[1768874215760,1.8393521,133.98,133.94,10.85824587]
[1768874221673,1.8393521,133.98,133.94,7.86209439]
[1768874221971,1.8393521,133.98,133.94,10.85824587]
[1768874224050,1.8393521,133.98,133.93,7.80739559]
[1768874224250,1.8393521,133.98,133.93,10.80354707]
[1768874226864,10.45999212,133.98,133.93,3.33696005]
[1768874227073,1.88935806,133.96,133.92,14.6849627]
[1768874227371,18.22935806,133.95,133.92,10.78930533]
[1768874228074,1.88935806,133.95,133.92,10.78930533]
[1768874228374,18.22935806,133.95,133.92,10.78930533]
[1768874229372,1.88935806,133.95,133.92,10.78930533]
[1768874229577,18.22935806,133.95,133.92,10.78930533]
[1768874229874,1.88935806,133.95,133.92,10.78930533]
[1768874230256,1.88935806,133.95,133.92,7.79315385]
[1768874230574,1.88935806,133.95,133.92,10.78930533]
[1768874233281,1.88935806,133.95,133.92,10.46305087]
[1768874233784,1.88935806,133.95,133.92,10.74093435]
[1768874234279,18.22935806,133.95,133.92,10.74093435]
[1768874235386,1.88935806,133.95,133.92,10.74093435]
[1768874236179,1.88935806,133.95,133.93,10.46266348]
[1768874241188,1.88935806,133.95,133.93,7.466512]
[1768874248395,16.34,133.96,133.94,0.18096441]
[1768874248576,16.34,133.96,133.94,2.99749718]
[1768874248895,18.20423727,133.96,133.94,2.99749718]
[1768874249281,1.86423727,133.96,133.94,2.99749718]
[1768874249673,1.86423727,133.96,133.93,10.64497359]
[1768874249977,1.86423727,133.96,133.94,2.99749718]
[1768874250879,1.86423727,133.96,133.93,10.64497359]
[1768874262830,1.86423727,133.96,133.93,7.64747641]
[1768874263016,1.86423727,133.96,133.93,10.64497359]
[1768874263696,1.86423727,133.96,133.93,7.466512]
[1768874264000,2.99749718,133.96,133.91,3.09789878]
[1768874264198,1.71635671,133.95,133.91,3.09789878]
[1768874264398,1.71635671,133.95,133.93,2.99749718]
[1768874264601,7.46400424,133.98,133.93,3.09334101]
[1768874264602,1.71635671,133.96,133.93,3.09334101]
[1768874264792,18.07635671,133.96,133.93,3.09334101]
[1768874266106,18.07635671,133.96,133.94,2.99749718]
[1768874266613,18.07635671,133.96,133.93,10.5508968]
[1768874269418,1.71635671,133.96,133.93,10.5508968]
[1768874269607,18.07635671,133.96,133.93,10.5508968]
[1768874274711,18.05635671,133.96,133.93,10.5508968]
[1768874275928,1.71635671,133.96,133.93,10.5508968]
[1768874276103,18.05635671,133.96,133.93,0.08688473]
[1768874276298,18.05635671,133.96,133.93,3.08438191]
[1768874277726,18.05635671,133.96,133.93,10.55076161]
[1768874278318,1.71635671,133.96,133.93,10.55076161]
[1768874278526,18.05635671,133.96,133.93,10.55076161]
[1768874279226,1.71635671,133.96,133.93,10.55076161]
[1768874279421,18.05635671,133.96,133.93,10.55076161]
[1768874279920,1.71635671,133.96,133.93,10.55076161]
[1768874280124,18.05635671,133.96,133.93,10.55076161]
[1768874280430,1.71635671,133.96,133.93,10.55076161]
[1768874280630,18.05635671,133.96,133.93,10.55076161]
[1768874281835,18.05635671,133.96,133.93,0.08688473]
[1768874282007,18.05635671,133.96,133.93,3.08438191]
[1768874282212,1.77310179,133.95,133.92,10.46464174]
[1768874283132,1.77310179,133.95,133.92,7.46714456]
[1768874283314,1.77310179,133.95,133.92,10.46464174]
[1768874284433,1.77310179,133.95,133.93,10.46376938]
[1768874286612,16.34,133.94,133.93,2.99749718]
[1768874288040,1.77310179,133.95,133.93,2.99749718]
[1768874288230,16.34,133.94,133.93,2.99749718]
[1768874288916,1.77310179,133.95,133.93,2.99749718]
[1768874289240,16.28000001,133.94,133.93,2.99749718]
[1768874289540,16.22000002,133.94,133.93,2.99749718]
[1768874289741,16.16000003,133.94,133.93,2.99749718]
[1768874289945,10.57704495,133.94,133.93,2.99749718]
[1768874290118,1.7131018,133.95,133.93,2.99749718]
[1768874290319,16.34,133.94,133.93,2.99749718]
[1768874291839,16.34,133.94,133.92,7.46714456]
[1768874292037,16.34,133.94,133.93,2.99749718]
[1768874295946,1.7131018,133.95,133.93,2.99749718]
[1768874296147,18.0531018,133.95,133.93,2.99749718]
[1768874296948,18.0531018,133.95,133.93,10.46400041]
[1768874297249,1.7131018,133.95,133.93,10.46400041]
[1768874297543,18.0531018,133.95,133.93,10.46400041]
[1768874301046,1.7131018,133.95,133.93,7.46650323]
[1768874301346,18.0531018,133.95,133.93,7.46650323]
[1768874301541,1.7131018,133.95,133.93,7.46650323]
[1768874301745,18.0531018,133.95,133.93,7.46650323]
[1768874303145,1.7131018,133.95,133.93,7.46650323]
[1768874303346,18.0531018,133.95,133.93,7.46650323]
[1768874303949,17.99310181,133.95,133.93,7.46650323]
[1768874304947,16.34,133.95,133.93,0.06698134]
[1768874305946,1.60994296,133.97,133.93,0.06698134]
[1768874306132,16.34,133.95,133.93,0.06698134]
[1768874307549,16.34,133.95,133.93,10.53077839]
[1768874308368,1.60994296,133.97,133.94,0.05672088]
[1768874308534,1.60994296,133.97,133.95,2.99746741]
[1768874311240,1.54994297,133.97,133.95,2.99746741]
[1768874318067,1.50966989,133.97,133.95,2.99746741]
[1768874321052,1.50966989,133.97,133.94,7.59322959]
[1768874321272,1.50966989,133.97,133.95,2.99746741]
[1768874322452,1.50966989,133.97,133.94,10.590697]
[1768874325477,1.50966989,133.97,133.95,2.99746741]
[1768874330473,1.50966989,133.97,133.95,10.46287166]
[1768874333077,120.75429266,134.02,133.96,2.99746741]
[1768874333078,1.57684989,133.98,133.96,2.99746741]
[1768874333572,1.57684989,134.0,133.97,2.99746741]
[1768874338985,1.57684989,134.0,133.96,3.09518833]
[1768874340486,1.57684989,133.99,133.96,3.09518833]
[1768874341085,1.57684989,133.99,133.96,10.55985577]
[1768874341467,1.57684989,133.99,133.96,10.46213485]
[1768874341869,1.57684989,133.99,133.96,10.54631327]
[1768874344485,1.57684989,133.99,133.96,10.46213485]
[1768874345888,1.57684989,133.99,133.96,10.53999716]
[1768874351392,1.57684989,133.99,133.97,2.99746741]
[1768874353290,1.57684989,133.99,133.97,10.46182]
[1768874355974,1.57684989,133.99,133.97,7.46435259]
[1768874364597,1.57684989,133.99,133.96,7.54253664]
[1768874364904,1.57684989,133.99,133.96,10.53837257]
[1768874366208,1.57684989,133.99,133.96,10.46051026]
[1768874366389,1.57684989,133.99,133.96,10.50840036]
[1768874371009,1.57684989,133.99,133.96,10.46051026]
[1768874371997,1.57684989,133.99,133.96,7.46467433]
[1768874372205,1.57684989,133.99,133.96,2.99583593]
[1768874373208,1.57684989,133.99,133.96,10.46029333]
[1768874373612,1.57684989,133.99,133.96,10.50013714]
[1768874374013,1.57684989,133.99,133.97,2.99583593]
[1768874374214,1.62083036,134.0,133.97,3.03458247]
[1768874375199,1.62083036,134.0,133.97,10.4987594]
[1768874376113,1.62083036,134.0,133.97,10.46001286]
[1768874378119,1.62083036,134.0,133.96,0.03658967]
[1768874378312,1.62083036,134.0,133.97,2.99583593]
[1768874379104,1.62083036,134.0,133.97,10.46006802]
[1768874380801,1.62083036,134.0,133.92,16.34]
[1768874380997,1.62083036,134.0,133.89,28.40893579]
[1768874380998,1.62083036,133.93,133.87,4.12773971]
[1768874381208,2.99583593,133.91,133.87,4.12773971]
[1768874381519,16.34,133.9,133.87,0.2]
[1768874381718,2.99583593,133.9,133.87,0.2]
[1768874382018,5.34408856,133.96,133.89,1.58713148]
[1768874382194,2.99583593,133.92,133.88,1.78713148]
[1768874382726,16.34,133.95,133.85,0.2]
[1768874382962,7.46825989,133.9,133.85,0.2]
[1768874383219,1.56767107,133.87,133.85,0.2]
[1768874384309,19.33583593,133.89,133.85,4.78296741]
[1768874384513,17.90767107,133.9,133.87,2.99583593]
[1768874385402,17.90767107,133.9,133.86,4.58296741]
[1768874386302,17.90767107,133.9,133.87,2.99583593]
[1768874386502,17.90767107,133.9,133.87,4.58296741]
[1768874387813,1.56767107,133.87,133.84,0.2]
[1768874388122,1.56767107,133.87,133.82,1.78713148]
[1768874388123,1.56767107,133.84,133.82,0.2]
[1768874388305,1.56767107,133.83,133.82,0.17000001]
[1768874388706,16.36,133.84,133.82,0.17000001]
[1768874388915,17.92767107,133.84,133.82,0.17000001]
[1768874392613,20.923507,133.84,133.82,0.17000001]
[1768874394016,17.92767107,133.84,133.82,0.17000001]
[1768874394217,1.70109836,133.86,133.82,1.78882818]
[1768874394417,16.36,133.84,133.83,1.61882817]
[1768874399431,4.69693429,133.86,133.83,1.61882817]
[1768874399432,1.70109836,133.86,133.83,1.61882817]
[1768874399731,18.06109836,133.86,133.83,9.09085047]
[1768874400117,1.70109836,133.88,133.84,1.61882817]
[1768874400317,4.69693429,133.89,133.85,4.6146641]
[1768874400526,1.70109836,133.87,133.84,9.08999633]
[1768874400724,1.70109836,133.88,133.85,1.61882817]
[1768874401239,1.70109836,133.88,133.85,9.08968145]
[1768874402028,1.70109836,133.88,133.85,12.08551738]
[1768874404427,1.70109836,133.91,133.87,2.99583593]
[1768874404744,18.06109836,133.91,133.88,4.6146641]
[1768874405047,1.70109836,133.9,133.87,4.6146641]
[1768874405642,1.70109836,133.9,133.85,9.08968145]
[1768874405823,1.70109836,133.89,133.85,9.08968145]
[1768874406024,1.70109836,133.89,133.85,12.08551738]
[1768874406232,1.70109836,133.89,133.85,4.6146641]
[1768874406932,1.70109836,133.89,133.85,12.08570062]
[1768874407243,1.70109836,133.89,133.86,4.6146641]
[1768874407442,1.70109836,133.89,133.86,4.5846641]
[1768874408731,16.36,133.91,133.87,2.99583593]
[1768874408935,18.06109836,133.91,133.87,2.99583593]
[1768874409131,18.06109836,133.91,133.88,2.99583593]
[1768874409337,1.70109836,133.91,133.88,4.6146641]
[1768874410042,1.70109836,133.91,133.87,2.99583593]
[1768874410250,1.70109836,133.91,133.87,4.6146641]
[1768874410745,1.70109836,133.91,133.88,1.61882817]
[1768874411150,1.70109836,133.91,133.87,2.99583593]
[1768874411151,1.70109836,133.91,133.87,4.6146641]
[1768874411729,1.70109836,133.91,133.88,1.61882817]
[1768874411950,1.70109836,133.91,133.87,4.6146641]
[1768874414252,1.70109836,133.91,133.87,4.5846641]
[1768874414640,1.70109836,133.91,133.88,1.61882817]
[1768874414839,1.70109836,133.91,133.88,1.58882817]
[1768874415140,1.70109836,133.91,133.87,2.99583593]
[1768874416135,1.70109836,133.9,133.87,2.99583593]
[1768874416334,1.70109836,133.9,133.86,10.46616217]
[1768874416855,1.70109836,133.9,133.87,1.61882817]
[1768874419257,1.70109836,133.9,133.86,10.46616217]
[1768874419258,1.70109836,133.9,133.86,1.61882817]
[1768874419440,1.70109836,133.89,133.86,1.61882817]
[1768874419753,1.70109836,133.89,133.86,4.6146641]
[1768874419960,1.70109836,133.89,133.86,1.61882817]
[1768874420554,1.70109836,133.89,133.83,1.61882817]
[1768874420741,10.46418446,133.9,133.82,0.17000001]
[1768874420742,1.70109836,133.86,133.82,1.78882818]
[1768874420936,1.70109836,133.86,133.82,12.25715266]
[1768874421535,1.70109836,133.86,133.83,1.61882817]
[1768874422140,1.70109836,133.86,133.82,1.78882818]
[1768874422362,1.70109836,133.84,133.82,0.17000001]
[1768874422547,4.69693429,133.84,133.82,0.17000001]
[1768874422746,1.70109836,133.84,133.82,0.17000001]
[1768874423058,4.69693429,133.84,133.82,0.17000001]
[1768874423239,1.74590004,133.83,133.82,0.17000001]
[1768874423640,1.74590004,133.84,133.82,0.17000001]
[1768874424057,4.74173597,133.84,133.82,0.17000001]
[1768874424861,1.74590004,133.84,133.82,0.17000001]
[1768874425541,1.74590004,133.82,133.75,5.80257522]
[1768874425857,1.43420616,133.79,133.75,1.91401729]
[1768874426061,1.43420616,133.79,133.75,12.39375207]
[1768874426259,1.43420616,133.79,133.75,9.39048726]
[1768874426454,4.43747097,133.79,133.75,9.39048726]
[1768874426656,4.43747097,133.79,133.75,1.91401729]
[1768874426839,3.00326481,133.78,133.75,1.91401729]
[1768874427238,1.45121487,133.78,133.75,0.1]
[1768874427456,4.45447968,133.78,133.75,0.1]
[1768874429253,1.45121487,133.78,133.75,0.1]
[1768874429451,4.45447968,133.78,133.75,0.1]
[1768874430163,1.45121487,133.78,133.75,0.1]
[1768874430369,1.47600231,133.79,133.75,1.91401729]
[1768874430551,4.47926712,133.79,133.75,1.91401729]
[1768874431051,1.47600231,133.79,133.75,1.91401729]
[1768874431363,20.83926712,133.79,133.75,1.91401729]
[1768874431565,11.95370689,133.79,133.75,1.91401729]
[1768874431863,20.85200057,133.81,133.77,1.81401729]
[1768874432366,1.50132295,133.8,133.77,1.81401729]
[1768874434039,4.52933009,133.79,133.75,1.91401729]
[1768874434244,1.52606528,133.79,133.75,1.91401729]
[1768874435853,9.01208693,133.8,133.76,1.81401729]
[1768874436667,9.01208693,133.8,133.77,1.81401729]
[1768874438568,18.67936333,133.84,133.78,1.81401729]
[1768874438863,28.40930958,133.83,133.79,1.81401729]
[1768874439070,12.06043175,133.84,133.8,1.81401729]
[1768874439249,25.41716694,133.84,133.8,4.8172821]
[1768874439450,28.42043175,133.84,133.8,1.81401729]
[1768874439653,25.41716694,133.84,133.8,1.81401729]
[1768874440157,1.59695289,133.83,133.8,1.81401729]
[1768874447077,17.95695289,133.83,133.8,1.81401729]
[1768874447679,1.68414085,133.82,133.79,1.84348508]
[1768874448077,16.36,133.83,133.79,1.84348508]
[1768874448378,18.05448363,133.83,133.79,1.84348508]
[1768874448577,18.05448363,133.83,133.8,1.84348508]
[1768874448882,16.36,133.84,133.81,1.84348508]
[1768874449078,16.36,133.84,133.81,4.84674989]
[1768874452560,1.73468033,133.82,133.78,9.31821633]
[1768874452859,1.73468033,133.82,133.79,1.84348508]
[1768874453164,1.73468033,133.82,133.79,4.84674989]
[1768874453661,9.20755396,133.82,133.78,1.97531427]
[1768874453862,12.21081877,133.82,133.78,1.97531427]
[1768874454592,9.20755396,133.82,133.78,1.97531427]
[1768874456522,9.20755396,133.82,133.76,1.97531427]
[1768874456523,1.78238325,133.8,133.76,1.97531427]
[1768874457403,1.78238325,133.8,133.75,7.57632168]
[1768874457585,1.78238325,133.8,133.77,1.97531427]
[1768874457907,18.15159762,133.81,133.77,1.97531427]